bitfinex/quotes_SOLUSD_20250403
["timestamp","ask_amount","ask_price","bid_price","bid_amount"]
[1743720303947,33.82484715,117.2,117.16,25.84484715]
[1743720304319,42.35724715,117.2,117.16,25.84484715]
[1743720304519,42.35724715,117.2,117.15,25.84484715]
[1743720304733,42.35724715,117.2,117.15,34.38014715]
[1743720305544,33.82484715,117.2,117.15,34.38014715]
[1743720305723,25.84484715,117.2,117.15,34.38014715]
[1743720305922,7.96,117.2,117.15,34.38014715]
[1743720306137,33.80484715,117.2,117.15,34.38014715]
[1743720306331,33.80484715,117.2,117.15,55.72024715]
[1743720306531,7.96,117.2,117.16,25.84484715]
[1743720306943,33.80484715,117.2,117.15,25.84484715]
[1743720307344,42.33724715,117.2,117.15,25.84484715]
[1743720307851,25.84484715,117.19,117.14,25.84484715]
[1743720308842,33.80484715,117.2,117.14,25.84484715]
[1743720309146,25.84484715,117.2,117.15,25.84484715]
[1743720309444,33.80484715,117.2,117.15,25.84484715]
[1743720310021,34.37724715,117.2,117.15,25.84484715]
[1743720310421,42.33724715,117.2,117.15,25.84484715]
[1743720311247,42.31724715,117.2,117.16,8.5353]
[1743720313058,26.12917029,117.19,117.14,25.84484715]
[1743720313239,34.66287029,117.19,117.13,25.84484715]
[1743720313439,25.84484715,117.18,117.13,25.84484715]
[1743720313651,25.84484715,117.18,117.11,6.21016157]
[1743720313829,25.84484715,117.18,117.13,25.84484715]
[1743720314661,85.70884715,117.18,117.13,25.84484715]
[1743720314871,85.70884715,117.18,117.13,34.38194715]
[1743720315028,77.17484715,117.18,117.13,34.38194715]
[1743720315224,34.66257029,117.19,117.13,34.38194715]
[1743720315526,34.66257029,117.19,117.14,25.84484715]
[1743720316259,34.66257029,117.19,117.13,34.38194715]
[1743720316776,25.84484715,117.18,117.13,34.38194715]
[1743720317161,77.17484715,117.18,117.13,8.5371]
[1743720317484,25.84484715,117.18,117.13,8.5371]
[1743720317889,25.84484715,117.18,117.13,34.38194715]
[1743720318186,85.99257029,117.19,117.13,34.38194715]
[1743720319292,85.99257029,117.19,117.13,8.5371]
[1743720319589,26.12917029,117.18,117.13,8.5371]
[1743720319954,34.66367029,117.18,117.13,8.5371]
[1743720320575,25.84484715,117.17,117.12,8.5378]
[1743720320955,25.84484715,117.17,117.12,34.38264715]
[1743720321577,34.37944715,117.17,117.12,34.38264715]
[1743720322885,8.5346,117.17,117.12,34.38264715]
[1743720323781,8.5346,117.17,117.12,25.08100167]
[1743720327091,7.86,117.16,117.12,25.08100167]
[1743720327972,32.93870167,117.16,117.12,8.5378]
[1743720328289,32.93870167,117.16,117.11,8.5385]
[1743720328487,16.54320167,117.15,117.11,8.5385]
[1743720328692,16.54320167,117.14,117.1,8.5394]
[1743720328882,0.28432314,117.15,117.1,8.5394]
[1743720329072,16.82752481,117.15,117.1,25.08260167]
[1743720329273,16.54320167,117.14,117.1,8.5394]
[1743720330493,16.82752481,117.15,117.1,25.08260167]
[1743720330689,7.86,117.16,117.11,16.54320167]
[1743720330876,7.86,117.16,117.12,16.54320167]
[1743720332793,7.86,117.16,117.13,8.5375]
[1743720334991,16.54320167,117.17,117.13,8.5375]
[1743720335195,7.82,117.17,117.13,25.08070167]
[1743720335694,16.82752481,117.18,117.13,46.42450167]
[1743720336400,69.53930167,117.19,117.14,16.54320167]
[1743720336593,77.35930167,117.19,117.14,16.54320167]
[1743720336898,60.8161,117.19,117.15,16.54320167]
[1743720337086,1.6661,117.19,117.16,8.5353]
[1743720338070,18.20930167,117.19,117.16,8.5353]
[1743720339300,18.20930167,117.19,117.14,37.88430167]
[1743720340801,1.6661,117.19,117.15,16.54320167]
[1743720341484,1.6661,117.19,117.16,8.5353]
[1743720342101,18.20930167,117.19,117.16,8.5353]
[1743720342302,26.74250167,117.19,117.15,8.5356]
[1743720342501,16.54320167,117.17,117.14,8.5363]
[1743720343003,16.82752481,117.18,117.14,8.5363]
[1743720343806,16.54320167,117.17,117.13,8.5375]
[1743720344104,16.54320167,117.17,117.12,32.95219067]
[1743720345082,16.54320167,117.17,117.13,8.5375]
[1743720346794,25.07780167,117.17,117.13,8.5375]
[1743720346980,16.54320167,117.17,117.13,8.5375]
[1743720351295,25.07790167,117.17,117.13,8.5375]
[1743720351495,16.54320167,117.16,117.13,8.5375]
[1743720351695,24.28320167,117.16,117.13,8.5375]
[1743720353018,16.54320167,117.15,117.13,8.5375]
[1743720353819,16.54320167,117.15,117.12,24.947189]
[1743720355422,16.54320167,117.13,117.11,8.5385]
[1743720355798,16.54320167,117.13,117.09,8.5404]
[1743720356013,16.54320167,117.13,117.09,25.08360167]
[1743720357121,16.54320167,117.13,117.09,46.43460167]
[1743720359427,16.54320167,117.13,117.09,29.8914]
[1743720361106,16.54320167,117.13,117.09,46.43460167]
[1743720362113,16.82752481,117.15,117.1,16.54320167]
[1743720363427,16.54320167,117.15,117.11,16.54320167]
[1743720363805,231.61320167,117.16,117.11,16.54320167]
[1743720364005,95.61320167,117.16,117.12,8.5382]
[1743720364503,22.90572481,117.17,117.12,25.08140167]
[1743720364824,24.50752481,117.17,117.12,25.08140167]
[1743720365030,24.50752481,117.17,117.12,46.42700167]
[1743720365204,16.54320167,117.15,117.12,8.5382]
[1743720365725,16.54320167,117.15,117.08,29.3495]
[1743720365726,86.94933524,117.14,117.08,29.3495]
[1743720365908,16.54320167,117.13,117.09,8.5404]
[1743720366109,24.24320167,117.13,117.09,8.5404]
[1743720366704,32.78080167,117.13,117.09,8.5404]
[1743720368108,7.7,117.13,117.09,46.43460167]
[1743720368309,7.7,117.13,117.1,16.54320167]
[1743720368508,18.04890167,117.15,117.1,16.54320167]
[1743720369526,1.5057,117.15,117.1,16.54320167]
[1743720369710,18.04890167,117.15,117.1,16.54320167]
[1743720370105,18.04890167,117.15,117.11,8.5389]
[1743720370726,26.58490167,117.15,117.11,8.5389]
[1743720370929,16.82752481,117.14,117.11,8.5389]
[1743720371308,69.37890167,117.15,117.11,8.5389]
[1743720372518,52.8357,117.15,117.11,25.08210167]
[1743720372831,69.37890167,117.15,117.11,29.8863]
[1743720373331,7.96432314,117.16,117.11,46.42950167]
[1743720373535,24.50752481,117.16,117.11,46.42950167]
[1743720374142,16.54320167,117.15,117.11,46.42950167]
[1743720374341,16.54320167,117.15,117.11,29.8863]
[1743720375533,24.50752481,117.16,117.11,46.42950167]
[1743720375729,7.68,117.16,117.12,16.54320167]
[1743720376216,67.87320167,117.17,117.12,16.54320167]
[1743720376419,75.53320167,117.17,117.12,16.54320167]
[1743720376935,75.53320167,117.17,117.13,8.5375]
[1743720377111,58.99,117.17,117.13,8.5375]
[1743720377311,75.53320167,117.17,117.13,8.5375]
[1743720377634,146.42772314,117.18,117.13,8.5375]
[1743720377931,408.65320167,117.2,117.15,16.54320167]
[1743720378339,357.32320167,117.2,117.15,16.54320167]
[1743720378515,16.54320167,117.2,117.16,16.54320167]
[1743720378716,24.20320167,117.2,117.16,16.54320167]
[1743720378939,16.54320167,117.2,117.15,16.54320167]
[1743720379110,16.54320167,117.19,117.15,16.54320167]
[1743720379315,16.54320167,117.18,117.14,16.54320167]
[1743720381013,16.54320167,117.19,117.15,8.536]
[1743720382641,16.54320167,117.19,117.15,46.41930167]
[1743720382948,75.79752481,117.2,117.15,46.41930167]
[1743720383734,24.46752481,117.2,117.15,46.41930167]
[1743720383938,21.6093,117.21,117.15,46.41930167]
[1743720384143,16.54320167,117.2,117.15,46.41930167]
[1743720385752,25.77250167,117.21,117.16,16.54320167]
[1743720385935,16.54320167,117.2,117.16,16.54320167]
[1743720386838,16.54320167,117.2,117.17,8.5346]
[1743720389936,25.77250167,117.21,117.17,8.5346]
[1743720390127,1.6093,117.21,117.17,46.41430167]
[1743720390326,16.54320167,117.22,117.17,46.41430167]
[1743720390544,164.0416,117.25,117.18,16.54320167]
[1743720390749,16.54320167,117.24,117.19,46.40910167]
[1743720391055,16.54320167,117.23,117.19,8.5331]
[1743720391356,16.54320167,117.21,117.18,8.5334]
[1743720392253,16.54320167,117.21,117.17,29.8703]
[1743720392944,143.6,117.24,117.18,16.54320167]
[1743720393139,16.54320167,117.23,117.18,16.54320167]
[1743720393540,16.54320167,117.23,117.19,16.54320167]
[1743720393746,16.54320167,117.23,117.18,16.54320167]
[1743720393951,16.54320167,117.22,117.17,46.41350167]
[1743720394334,16.54320167,117.23,117.19,16.54320167]
[1743720395330,8.32592314,117.25,117.2,16.54320167]
[1743720395532,18.19460167,117.25,117.21,16.54320167]
[1743720396144,18.19460167,117.25,117.2,16.54320167]
[1743720396553,26.72340167,117.25,117.2,16.54320167]
[1743720397236,16.54320167,117.24,117.19,46.40910167]
[1743720397440,16.54320167,117.23,117.19,8.5331]
[1743720399966,16.54320167,117.23,117.19,25.07630167]
[1743720400349,16.54320167,117.23,117.19,16.54320167]
[1743720400666,16.82752481,117.24,117.19,16.54320167]
[1743720401372,16.82752481,117.24,117.2,8.5324]
[1743720404071,16.54320167,117.24,117.2,25.07560167]
[1743720404582,136.0,117.26,117.22,16.54320167]
[1743720405676,136.0,117.26,117.23,8.5302]
[1743720406264,16.54320167,117.27,117.23,8.5302]
[1743720407485,0.28432314,117.27,117.23,8.5302]
[1743720407691,16.54320167,117.26,117.23,8.5302]
[1743720408670,16.54320167,117.27,117.23,8.5302]
[1743720409573,16.82752481,117.26,117.22,8.5305]
[1743720409767,16.54320167,117.24,117.21,8.5316]
[1743720409970,16.54320167,117.24,117.2,8.5321]
[1743720410277,24.14320167,117.24,117.2,8.5321]
[1743720410792,7.6,117.24,117.2,25.07530167]
[1743720411582,24.14320167,117.24,117.2,25.07530167]
[1743720412313,7.6,117.24,117.2,25.07530167]
[1743720413374,24.14320167,117.24,117.2,8.5321]
[1743720413578,32.67280167,117.24,117.2,8.5321]
[1743720414193,24.14320167,117.24,117.2,8.5321]
[1743720415202,24.14320167,117.24,117.2,25.07530167]
[1743720418302,24.14320167,117.24,117.2,8.5321]
[1743720418477,32.67270167,117.24,117.2,8.5321]
[1743720419696,67.87320167,117.23,117.2,8.5321]
[1743720419894,16.54320167,117.23,117.2,8.5321]
[1743720423209,24.14320167,117.24,117.2,8.5321]
[1743720423384,7.6,117.24,117.2,25.07530167]
[1743720423791,152.82752481,117.26,117.21,16.54320167]
[1743720423992,16.54320167,117.26,117.22,16.54320167]
[1743720425203,16.54320167,117.26,117.23,8.5302]
[1743720425701,16.54320167,117.25,117.22,8.5307]
[1743720426718,16.82752481,117.26,117.22,8.5307]
[1743720427502,16.54320167,117.26,117.22,8.5307]
[1743720430328,25.07130167,117.26,117.22,8.5307]
[1743720430823,16.54320167,117.26,117.22,8.5307]
[1743720431303,16.54320167,117.27,117.22,46.40130167]
[1743720433111,16.54320167,117.27,117.23,16.54320167]
[1743720433314,25.78120167,117.28,117.23,16.54320167]
[1743720433512,16.54320167,117.27,117.22,46.40130167]
[1743720434217,16.54320167,117.26,117.22,8.5307]
[1743720434425,16.54320167,117.25,117.21,8.5316]
[1743720434623,16.54320167,117.23,117.21,8.5316]
[1743720435117,24.14320167,117.24,117.21,8.5316]
[1743720436223,24.14320167,117.24,117.2,8.5324]
[1743720436630,16.54320167,117.22,117.19,8.5331]
[1743720437000,16.82752481,117.23,117.19,8.5331]
[1743720438923,16.54320167,117.22,117.19,8.5331]
[1743720439229,16.82752481,117.23,117.19,8.5331]
[1743720440534,44.14320167,117.24,117.19,16.54320167]
[1743720440702,7.6,117.24,117.2,16.54320167]
[1743720440908,7.6,117.24,117.21,16.54320167]
[1743720441811,7.6,117.24,117.2,16.54320167]
[1743720442018,24.14320167,117.24,117.19,16.54320167]
[1743720442736,24.14320167,117.24,117.2,8.5324]
[1743720444242,7.6,117.24,117.2,46.40660167]
[1743720444649,7.6,117.24,117.21,16.54320167]
[1743720445260,16.54320167,117.25,117.2,46.40660167]
[1743720448235,16.54320167,117.25,117.21,16.54320167]
[1743720448430,16.54320167,117.26,117.21,16.54320167]
[1743720448640,24.42752481,117.27,117.22,16.54320167]
[1743720448840,24.14320167,117.27,117.22,16.54320167]
[1743720449355,51.33,117.26,117.22,16.54320167]
[1743720449667,24.14320167,117.27,117.22,16.54320167]
[1743720450748,7.6,117.27,117.22,16.54320167]
[1743720451074,26.06552481,117.28,117.23,46.39890167]
[1743720451769,16.54320167,117.27,117.23,29.8557]
[1743720452061,16.54320167,117.27,117.23,8.5302]
[1743720452267,16.54320167,117.26,117.23,8.5302]
[1743720452641,16.54320167,117.25,117.23,8.5302]
[1743720452861,16.54320167,117.25,117.22,8.5306]
[1743720453047,16.54320167,117.25,117.21,8.5316]
[1743720457971,16.54320167,117.25,117.21,16.54320167]
[1743720458974,25.07130167,117.26,117.21,16.54320167]
[1743720459765,16.54320167,117.26,117.21,16.54320167]
[1743720459975,16.54320167,117.26,117.22,8.5309]
[1743720460549,16.54320167,117.26,117.22,29.8583]
[1743720460755,16.82752481,117.27,117.22,46.40150167]
[1743720462372,16.54320167,117.26,117.22,29.8583]
[1743720462582,16.54320167,117.26,117.22,8.5309]
[1743720464275,25.07120167,117.26,117.22,8.5309]
[1743720464577,16.82752481,117.24,117.21,8.5316]
[1743720464781,24.42752481,117.24,117.21,8.5316]
[1743720465570,24.42752481,117.24,117.19,37.87500167]
[1743720466072,7.88432314,117.24,117.2,16.54320167]
[1743720466774,7.88432314,117.24,117.21,8.5316]
[1743720466978,24.14320167,117.24,117.21,8.5316]
[1743720467275,24.14320167,117.24,117.2,8.5321]
[1743720467478,16.82752481,117.23,117.19,8.5327]
[1743720467657,16.54320167,117.21,117.18,8.5334]
[1743720468369,7.6,117.2,117.16,25.07850167]
[1743720468566,24.14320167,117.2,117.16,8.5353]
[1743720470684,16.82752481,117.19,117.16,8.5353]
[1743720470874,16.54320167,117.18,117.15,8.5357]
[1743720471058,16.54320167,117.18,117.14,8.5367]
[1743720471569,16.54320167,117.18,117.14,25.07990167]
[1743720473378,16.54320167,117.18,117.12,8.5382]
[1743720473379,16.82752481,117.17,117.12,8.5382]
[1743720473572,24.14320167,117.16,117.12,8.5382]
[1743720473882,24.14320167,117.16,117.12,25.08140167]
[1743720474079,7.6,117.16,117.13,16.54320167]
[1743720475384,7.6,117.16,117.14,8.5367]
[1743720476181,7.6,117.16,117.14,25.07990167]
[1743720476478,16.54320167,117.18,117.14,25.07990167]
[1743720476870,16.54320167,117.18,117.14,46.42180167]
[1743720479784,18.19390167,117.2,117.15,16.54320167]
[1743720481388,18.19390167,117.2,117.16,8.5353]
[1743720482895,16.54320167,117.19,117.16,8.5353]
[1743720483571,16.54320167,117.19,117.15,8.536]
[1743720484796,0.28432314,117.18,117.14,25.07970167]
[1743720484994,16.54320167,117.17,117.14,8.5365]
[1743720485291,0.28432314,117.18,117.14,8.5365]
[1743720485292,16.82752481,117.18,117.14,8.5365]
[1743720485981,16.54320167,117.18,117.14,25.07970167]
[1743720486497,16.54320167,117.18,117.14,46.42160167]
[1743720486796,16.54320167,117.19,117.14,46.42160167]
[1743720487767,16.54320167,117.19,117.15,16.54320167]
[1743720487971,16.54320167,117.19,117.14,37.88510167]
[1743720488787,16.54320167,117.18,117.14,37.88510167]
[1743720489191,16.82752481,117.19,117.14,37.88510167]
[1743720490294,16.82752481,117.19,117.14,46.42180167]
[1743720491291,16.54320167,117.19,117.14,46.42180167]
[1743720491671,16.54320167,117.18,117.14,8.5367]
[1743720491971,16.54320167,117.17,117.14,8.5367]
[1743720492396,32.67780167,117.17,117.13,8.5375]
[1743720492579,24.14320167,117.17,117.13,8.5375]
[1743720493076,24.14320167,117.17,117.13,25.08070167]
[1743720493276,36.54320167,117.19,117.14,16.54320167]
[1743720493477,16.54320167,117.19,117.14,16.54320167]
[1743720494699,16.54320167,117.19,117.15,8.536]
[1743720495403,16.54320167,117.18,117.15,8.536]
[1743720495886,16.82752481,117.17,117.14,8.5364]
[1743720496899,16.82752481,117.17,117.13,8.5375]
[1743720497699,16.54320167,117.16,117.13,8.5375]
[1743720500114,16.54320167,117.15,117.13,8.5375]
[1743720501480,24.14320167,117.16,117.12,8.5382]
[1743720502497,7.6,117.16,117.12,25.08140167]
[1743720502682,7.6,117.16,117.13,16.54320167]
[1743720503701,7.6,117.16,117.14,8.5367]
[1743720503879,136.0,117.18,117.14,25.07990167]
[1743720504683,136.0,117.18,117.14,46.42180167]
[1743720505379,136.0,117.18,117.15,16.54320167]
[1743720505607,136.0,117.18,117.16,16.54320167]
[1743720505900,9.2507,117.2,117.17,8.5346]
[1743720506500,1.6507,117.2,117.17,8.5346]
[1743720507085,18.19390167,117.2,117.17,8.5346]
[1743720507901,18.19390167,117.2,117.16,8.5353]
[1743720508102,16.54320167,117.18,117.15,8.5357]
[1743720509108,16.54320167,117.18,117.14,8.5367]
[1743720519608,16.54320167,117.18,117.13,21.3428]
[1743720519799,16.54320167,117.18,117.13,37.88600167]
[1743720521120,16.54320167,117.18,117.13,46.42350167]
[1743720521525,16.82752481,117.19,117.14,16.54320167]
[1743720522722,16.54320167,117.18,117.13,29.8803]
[1743720523224,16.54320167,117.18,117.13,46.42350167]
[1743720523518,16.54320167,117.18,117.13,8.5375]
[1743720523519,16.54320167,117.17,117.13,8.5375]
[1743720524306,24.14320167,117.18,117.13,25.08070167]
[1743720524626,24.14320167,117.18,117.13,46.42450167]
[1743720529825,32.67700167,117.18,117.13,46.42450167]
[1743720530209,32.67700167,117.18,117.13,8.5375]
[1743720530210,16.54320167,117.16,117.13,8.5375]
[1743720530619,16.54320167,117.17,117.13,8.5375]
[1743720531319,25.07790167,117.17,117.13,8.5375]
[1743720533624,16.54320167,117.16,117.12,8.5382]
[1743720534430,67.83320167,117.16,117.12,8.5382]
[1743720534611,16.54320167,117.16,117.12,8.5382]
[1743720537739,16.54320167,117.14,117.1,8.5397]
[1743720538113,16.54320167,117.13,117.1,8.5397]
[1743720538920,7.6,117.14,117.1,25.08290167]
[1743720539621,7.6,117.14,117.1,46.43210167]
[1743720540434,1.6214,117.16,117.12,16.54320167]
[1743720541137,1.6214,117.16,117.13,8.5375]
[1743720542735,7.6,117.17,117.13,46.42450167]
[1743720542923,7.6,117.17,117.14,16.54320167]
[1743720543120,7.6,117.17,117.15,8.536]
[1743720543929,45.76460167,117.19,117.15,8.536]
[1743720544129,16.54320167,117.18,117.15,8.536]
[1743720545846,45.76460167,117.19,117.15,8.536]
[1743720546026,0.28432314,117.18,117.15,8.536]
[1743720546226,16.82752481,117.18,117.15,8.536]
[1743720546622,16.54320167,117.18,117.15,8.536]
[1743720547051,136.0,117.21,117.16,16.54320167]
[1743720547254,136.0,117.21,117.17,16.54320167]
[1743720547548,18.08150167,117.22,117.18,8.5338]
[1743720548221,1.5383,117.22,117.18,46.41160167]
[1743720548622,18.08150167,117.22,117.18,8.5338]
[1743720548840,16.54320167,117.21,117.18,8.5338]
[1743720549347,18.08150167,117.22,117.18,8.5338]
[1743720550735,18.08150167,117.22,117.17,16.54320167]
[1743720550736,16.54320167,117.2,117.16,8.5353]
[1743720551749,16.54320167,117.2,117.16,25.07850167]
[1743720551928,16.54320167,117.2,117.16,46.41680167]
[1743720552666,18.08150167,117.22,117.17,16.54320167]
[1743720552826,18.08150167,117.22,117.18,8.5338]
[1743720553031,16.54320167,117.21,117.18,8.5338]
[1743720553828,1.5383,117.22,117.18,8.5338]
[1743720554152,18.08150167,117.22,117.18,25.07700167]
[1743720554326,1.5383,117.22,117.18,25.07700167]
[1743720554529,520.51216157,117.24,117.19,16.54320167]
[1743720554530,487.16150167,117.24,117.19,16.54320167]
[1743720554746,351.16150167,117.24,117.2,16.54320167]
[1743720554932,334.6183,117.24,117.21,8.5316]
[1743720555127,333.08,117.24,117.21,8.5316]
[1743720555349,24.14320167,117.25,117.21,25.07480167]
[1743720555543,157.5383,117.27,117.22,16.54320167]
[1743720555851,45.68150167,117.27,117.22,16.54320167]
[1743720556232,38.08150167,117.27,117.22,16.54320167]
[1743720556552,1.5383,117.27,117.23,16.54320167]
[1743720556752,7.6,117.28,117.23,16.54320167]
[1743720556932,7.6,117.28,117.24,8.5295]
[1743720556933,24.14320167,117.28,117.24,8.5295]
[1743720557735,16.54320167,117.28,117.24,25.07270167]
[1743720558946,25.06990167,117.28,117.24,25.07270167]
[1743720559637,25.06990167,117.28,117.24,8.5295]
[1743720560352,25.06980167,117.28,117.24,8.5295]
[1743720561059,16.54320167,117.27,117.23,25.07300167]
[1743720562161,25.07050167,117.27,117.23,8.5298]
[1743720562860,25.07050167,117.27,117.19,67.40704886]
[1743720562861,16.82752481,117.26,117.21,16.54320167]
[1743720563036,16.54320167,117.25,117.2,25.07560167]
[1743720564455,25.07200167,117.25,117.2,25.07560167]
[1743720564637,16.54320167,117.25,117.2,25.07560167]
[1743720564838,16.82752481,117.26,117.21,16.54320167]
[1743720565556,16.54320167,117.26,117.21,16.54320167]
[1743720566065,25.07140167,117.26,117.21,16.54320167]
[1743720567539,25.07140167,117.26,117.22,8.5309]
[1743720567742,16.54320167,117.25,117.22,8.5309]
[1743720568657,16.54320167,117.24,117.19,16.54320167]
[1743720568960,10.37142314,117.25,117.19,16.54320167]
[1743720568961,16.54320167,117.23,117.19,16.54320167]
[1743720569743,25.35712481,117.24,117.2,8.5321]
[1743720570660,16.54320167,117.23,117.2,8.5321]
[1743720572563,9.1382,117.25,117.21,16.54320167]
[1743720572763,152.54320167,117.26,117.22,16.54320167]
[1743720572949,10.0851,117.28,117.23,16.54320167]
[1743720573155,34.20830167,117.28,117.24,16.54320167]
[1743720573547,34.20830167,117.28,117.23,16.54320167]
[1743720574071,34.20830167,117.28,117.24,8.5295]
[1743720574453,0.28432314,117.25,117.21,8.5316]
[1743720574654,16.54320167,117.24,117.21,8.5316]
[1743720574871,16.82752481,117.25,117.21,8.5316]
[1743720575066,16.54320167,117.26,117.22,16.54320167]
[1743720575273,24.40752481,117.27,117.22,16.54320167]
[1743720576075,16.54320167,117.26,117.22,25.07360167]
[1743720576366,16.82752481,117.25,117.21,8.5314]
[1743720578572,16.54320167,117.26,117.21,25.07460167]
[1743720578968,25.07090167,117.27,117.22,16.54320167]
[1743720579172,7.58,117.27,117.23,16.54320167]
[1743720579671,38.10140167,117.28,117.23,16.54320167]
[1743720579878,38.10140167,117.28,117.24,16.54320167]
[1743720580179,46.62800167,117.28,117.24,8.5295]
[1743720580663,38.10140167,117.28,117.24,8.5295]
[1743720582878,46.62800167,117.28,117.24,8.5295]
[1743720585073,16.54320167,117.27,117.24,8.5295]
[1743720589182,25.07050167,117.27,117.23,8.5302]
[1743720589384,16.54320167,117.25,117.22,8.5306]
[1743720589585,20.28432314,117.26,117.22,25.07380167]
[1743720589586,16.54320167,117.26,117.22,25.07380167]
[1743720590682,16.54320167,117.26,117.22,8.5306]
[1743720591082,16.54320167,117.26,117.2,8.5324]
[1743720591083,16.54320167,117.25,117.2,8.5324]
[1743720591263,16.54320167,117.25,117.2,25.07560167]
[1743720591687,24.12320167,117.25,117.2,25.07560167]
[1743720594897,7.58,117.25,117.2,25.07560167]
[1743720595087,24.12320167,117.25,117.2,25.07560167]
[1743720596298,16.54320167,117.23,117.19,8.5331]
[1743720597396,16.54320167,117.22,117.19,8.5331]
[1743720599383,67.83320167,117.22,117.19,8.5331]
[1743720599586,16.54320167,117.22,117.19,8.5331]
[1743720600494,16.54320167,117.2,117.16,8.5353]
[1743720600797,16.54320167,117.2,117.14,25.07990167]
[1743720600798,16.54320167,117.19,117.14,25.07990167]
[1743720601703,25.07640167,117.19,117.14,25.07990167]
[1743720602005,36.54320167,117.2,117.15,16.54320167]
[1743720602213,16.54320167,117.2,117.15,16.54320167]
[1743720603209,16.54320167,117.2,117.16,16.54320167]
[1743720604110,16.54320167,117.2,117.17,8.5346]
[1743720605207,16.54320167,117.19,117.16,8.5353]
[1743720605782,36.54320167,117.2,117.16,8.5353]
[1743720606305,16.54320167,117.2,117.16,8.5353]
[1743720606506,24.12320167,117.21,117.17,16.54320167]
[1743720606804,16.54320167,117.23,117.18,16.54320167]
[1743720607010,24.12320167,117.23,117.18,16.54320167]
[1743720607589,37.40182447,117.23,117.18,16.54320167]
[1743720608603,37.40182447,117.23,117.19,8.5331]
[1743720609407,45.93202447,117.23,117.19,8.5331]
[1743720609604,16.54320167,117.22,117.19,8.5331]
[1743720610512,7.58,117.23,117.18,8.5338]
[1743720610717,24.12320167,117.23,117.18,25.07700167]
[1743720611617,24.12320167,117.23,117.18,46.41160167]
[1743720613128,1.6515,117.24,117.2,16.54320167]
[1743720613328,57.40182447,117.26,117.21,16.54320167]
[1743720613625,16.54320167,117.25,117.21,16.54320167]
[1743720615321,29.82182447,117.26,117.22,8.5309]
[1743720615532,16.54320167,117.26,117.22,8.5309]
[1743720615699,59.15432314,117.27,117.2,8.5324]
[1743720615893,7.58,117.27,117.2,8.5324]
[1743720616089,16.54320167,117.26,117.21,16.54320167]
[1743720616498,16.54320167,117.25,117.21,16.54320167]
[1743720616900,16.54320167,117.25,117.2,25.07560167]
[1743720617313,25.07200167,117.25,117.2,25.07560167]
[1743720618623,16.54320167,117.23,117.2,8.5324]
[1743720618920,16.54320167,117.24,117.2,8.5324]
[1743720620321,25.07280167,117.24,117.2,8.5324]
[1743720622123,25.07220167,117.25,117.2,25.07560167]
[1743720622322,24.12320167,117.25,117.2,25.07560167]
[1743720624117,24.12320167,117.25,117.2,46.40660167]
[1743720625336,36.54320167,117.23,117.19,8.5327]
[1743720626307,45.07350167,117.23,117.19,8.5327]
[1743720627811,18.17940167,117.24,117.19,25.07590167]
[1743720628124,7.58,117.25,117.21,16.54320167]
[1743720628309,7.58,117.25,117.22,8.5309]
[1743720629712,7.58,117.25,117.2,37.87310167]
[1743720629917,16.54320167,117.24,117.19,16.54320167]
[1743720630927,16.54320167,117.24,117.2,8.532]
[1743720631221,25.07270167,117.24,117.2,8.532]
[1743720631827,16.54320167,117.23,117.19,8.5331]
[1743720632128,16.54320167,117.22,117.17,25.07780167]
[1743720634030,25.07420167,117.22,117.17,8.5346]
[1743720634326,67.83320167,117.22,117.17,46.41430167]
[1743720639441,67.83320167,117.22,117.18,16.54320167]
[1743720640531,67.83320167,117.22,117.19,8.5331]
[1743720640732,51.29,117.22,117.19,8.5331]
[1743720640931,224.11752481,117.25,117.2,16.54320167]
[1743720641106,7.58,117.24,117.2,16.54320167]
[1743720641507,7.58,117.24,117.21,16.54320167]
[1743720641708,20.8586228,117.26,117.22,16.54320167]
[1743720641914,13.2786228,117.26,117.22,16.54320167]
[1743720642232,13.2786228,117.26,117.23,16.54320167]
[1743720642631,13.2786228,117.26,117.24,8.5295]
[1743720644446,18.17940167,117.27,117.24,8.5295]
[1743720645329,20.0,117.29,117.24,25.07270167]
[1743720645523,24.12320167,117.29,117.24,46.39640167]
[1743720646766,16.54320167,117.29,117.24,46.39640167]
[1743720647570,16.54320167,117.28,117.24,8.5295]
[1743720650355,16.54320167,117.27,117.24,8.5295]
[1743720650866,16.54320167,117.27,117.23,8.5302]
[1743720653251,16.54320167,117.27,117.23,16.54320167]
[1743720653463,16.54320167,117.27,117.22,46.40060167]
[1743720653964,16.54320167,117.27,117.23,16.54320167]
[1743720654145,16.82752481,117.28,117.23,16.54320167]